Cogmind - Beta 16 @@@ ROGUE MODE // 2026.01.05 @ 17:54:20 Player: Qvest Result: Destroyed by as-47598 with Assembled Rifle Performance ------------- Evolutions (0) 0 Regions Visited (2) 400 Robots Destroyed (21) 105 Value Destroyed (400) 400 Prototype IDs (0) 0 Alien Tech Used (0) 0 Bonus (0) 0 TOTAL SCORE: 905 Bonus ------- None Cogmind --------- Core Integrity 0/250 Matter 260/300 Energy 250/250 System Corruption 0% Temperature Cool (0) Movement Rolling (100) Location -10/Mines Parts ------- > --- POWER (1) -------- Ion Engine > --- PROPULSION (2) --- Compact Wheel > --- UTILITY (2) ------ (None) > --- WEAPON (2) ------- Small Laser Makeshift Hammer > --- INVENTORY (5) ---- Light Treads ECM Suite Peak State ------------ > --- POWER ------------ Ion Engine > --- PROPULSION ------- Compact Wheel Compact Wheel > --- UTILITY ---------- Huge Storage Unit Weight Redist. System > --- WEAPON ----------- Assault Rifle Light Assault Rifle > --- INVENTORY -------- Ion Engine Light Ion Engine Light Ion Engine Light Treads Light Treads Aluminum Leg Aluminum Leg Aluminum Leg Aluminum Leg Aluminum Leg Compact Wheel Compact Wheel Compact Wheel Flight Unit Flight Unit Improved Heat Sink Small Storage Unit Medium Battery Large Matter Pod Sensor Array Improved Terrain Scanner Seismic Detector ECM Suite Small Laser Mining Laser [Rating: 10] Favorites ----------- Power Ion Engine Engine Ion Engine Propulsion Compact Wheel Treads Light Treads Leg Aluminum Leg Wheel Compact Wheel Utility Huge Storage Unit Device Seismic Detector Storage Huge Storage Unit Weapon Assault Rifle Energy Gun Small Laser Ballistic Gun Assault Rifle Impact Weapon Makeshift Hammer Build | -11 -10 -10 ------- Run | Yrd Mat Min Slots Evolved . | . . . Power . | . . . Propulsion . | . . . Utility . | . . . Weapon . | . . . Parts Attached 27 | 7 15 5 Power 3 | 1 1 1 Engine 3 | 1 1 1 Core . | . . . Reactor . | . . . Propulsion 9 | 2 6 1 Treads 2 | . 2 . Leg 2 | 2 . . Wheel 5 | . 4 1 Hover . | . . . Flight . | . . . Utility 9 | 2 7 . Device 5 | 1 4 . Storage 4 | 1 3 . Processor . | . . . Hackware . | . . . Protection . | . . . Artifact . | . . . Weapon 6 | 2 1 3 Energy Gun 1 | . . 1 Energy Cannon . | . . . Ballistic Gun 4 | 2 1 1 Ballistic Cannon . | . . . Launcher . | . . . Special Weapon . | . . . Impact Weapon 1 | . . 1 Slashing Weapon . | . . . Piercing Weapon . | . . . Special Melee Weapon . | . . . Unidentified Prototypes . | . . . Parts Lost 6 | . 4 2 Power 1 | . . 1 Propulsion 2 | . 2 . Utility 2 | . 1 1 Weapon 1 | . 1 . Highest Loss Streak 2 | . 2 2 To Critical Strikes . | . . . Average Backups 17 | 4 19 17 Power 2 | . 2 2 Propulsion 8 | 3 9 6 Utility 5 | . 6 6 Weapon 1 | . 2 1 Tool/Special . | . . . Unused Backups 19 | 1 7 11 Power 3 | 1 . 2 Propulsion 7 | . 3 4 Utility 8 | . 4 4 Weapon 1 | . . 1 Tool/Special . | . . . Average Slot Usage (%) 97 | . 100 77 Engine 13 | . 14 12 Treads 2 | . 2 3 Wheel 24 | . 25 18 Device 6 | . 6 7 Storage 19 | . 21 8 Ballistic Gun 26 | . 28 17 Peak Build Rating 10 | 7 10 10 Average Rating 8 | 5 8 7 On Entrance 5 | . 7 9 Avg Prop Armor Cover (%) 13 | . 13 . Naked Turns 10 | . . 10 Heaviest Build 93 | 14 93 89 Greatest Support 38 | 20 38 32 Greatest Overweight (x) 5 | . 5 2 Average Overweight (x) 1 | . 2 . Largest Inventory Capacity 25 | 8 25 25 Average Capacity 21 | 7 24 16 Most Carried 25 | 8 25 25 Average Carried 17 | 4 19 15 Final Capacity 25 | 8 25 5 Final Carried 24 | 8 24 2 Class Distribution -------------------- 100% | Mutant Dominant Class ---------------- Mutant | -10/Materials Mutant | -10/Mines Resources | -11 -10 -10 ----------- Run | Yrd Mat Min Matter Collected 1027 | 298 622 107 Remotely . | . . . Salvage Created 879 | 84 742 53 Parts 41 | 4 34 3 Haulers Intercepted 1 | . 1 . Recyclers Shooed 5 | . 4 1 Parts Field Recycled . | . . . Retrieved Matter . | . . . Parts Self-Destructed . | . . . Prevented . | . . . Parts Restored . | . . . Kills | -11 -10 -10 ------- Run | Yrd Mat Min Combat Hostiles Destroyed 14 | . 10 4 Melee 1 | . . 1 Guns 12 | . 10 2 Classes Destroyed 7 | 2 4 1 Tunneler 2 | 1 1 . Hauler 1 | . 1 . Recycler 5 | 1 4 . Watcher 1 | . 1 . Swarmer 4 | . 2 2 Grunt 8 | . 8 . Assembled 2 | . . 2 Best Kill Streak 5 | 2 5 2 Combat Bots Only 2 | . 2 2 Max Kills in Single Turn 1 | 1 1 1 Gunslinging . | . . . Exploded . | . . . Melee 1 | . . 1 Uniques/NPCs Destroyed . | . . . Combat | -11 -10 -10 -------- Run | Yrd Mat Min Hostile Shots Fired 92 | . 46 46 Missed 32 | . 13 19 Hits 60 | . 33 27 Melee 1 | . . 1 Projectile 59 | . 33 26 AOE 6 | . . 6 Critical Strikes 3 | . 2 1 Damage Taken 999 | . 439 560 Core 258 | . 28 230 Absorbed by Shields . | . . . Core Remaining (%) 100 | 100 . . Volleys Fired 69 | 7 55 7 Largest 2 | 2 2 2 Hottest 40 | 40 40 40 Shots Fired 135 | 14 109 12 Gun 135 | 14 109 12 Cannon . | . . . Launcher . | . . . Special . | . . . Kinetic 133 | 14 109 10 Thermal 2 | . . 2 Explosive . | . . . Electromagnetic . | . . . Robot Hit Streak 11 | 4 11 3 Robot Miss Streak 4 | 1 4 4 Penetration Max . | . . . Secondary Targets 2 | . 2 . Max Gunslinging Chain 1 | . 1 . Shots Hit Robots 85 | 10 69 6 Core Hits 42 | 3 34 5 Critical Kills 2 | . 2 . Critical Parts Destroyed . | . . . Critical Strikes 2 | . 2 . Destroy 2 | . 2 . Melee Attacks 3 | . . 3 Impact 3 | . . 3 Slashing . | . . . Piercing . | . . . Sneak Attacks . | . . . Combat Hostiles . | . . . Follow-up Attacks . | . . . Damage Inflicted 1005 | 110 704 191 Guns 875 | 110 704 61 Cannons . | . . . Explosions . | . . . Melee 118 | . . 118 Ramming 12 | . . 12 Kinetic 863 | 110 704 49 Thermal 12 | . . 12 Explosive . | . . . Electromagnetic . | . . . Impact 118 | . . 118 Slashing . | . . . Piercing . | . . . Highest Corruption . | . . . Average Corruption . | . . . Corruption Purged . | . . . Corruption Blocked . | . . . Overload Shots . | . . . Overflow Damage 35 | . . 35 Projectiles . | . . . Explosions . | . . . Melee 35 | . . 35 Knockbacks . | . . . Impact . | . . . Kinetic . | . . . Secondary . | . . . Self-Inflicted Damage 6 | . . 6 Shots . | . . . Rammed 2 | . . 2 Targets Rammed 2 | . . 2 Kicked . | . . . Crushed . | . . . Highest Temperature 34 | . 34 3 Average Temperature 11 | . 11 3 Received Heat Transfer 269 | . 249 20 Siege Activations . | . . . Martial Activations . | . . . Shielding Activations . | . . . Robots Disrupted . | . . . Combat Hostiles . | . . . Robots Corrupted 1 | . . 1 Combat Hostiles 1 | . . 1 Parts Fried . | . . . Impact Corruptions 1 | . . 1 Robots Melted . | . . . Combat Hostiles . | . . . Parts Melted . | . . . Heat Transferred 25 | . . 25 Parts Sabotaged . | . . . Parts Stolen . | . . . Parts Stripped . | . . . Power Chain Reactions . | . . . Alert | -11 -10 -10 ------- Run | Yrd Mat Min Maximum Alert Level . | . . . Low Security (%) 100 | 100 100 100 Level 1 . | . . . Level 2 . | . . . Level 3 . | . . . Level 4 . | . . . Level 5 . | . . . High Security . | . . . Max Security . | . . . Peak Influence 49 | 5 49 40 Initial . | . . . Average 13 | . 15 11 Influence Increases 359 | 10 299 50 Destroy 0b10 Robot/C 240 | . 200 40 Destroy 0b10 Robot/NC 45 | 10 35 . Destroy Leader 44 | . 34 10 Lose Combat Pursuer 30 | . 30 . Influence Decreases 359 | 10 299 50 Time Decay 309 | 10 269 30 Lost Part 50 | . 30 20 Squads Dispatched 2 | . 2 . Investigation . | . . . Extermination . | . . . Reinforcement 2 | . 2 . Assault . | . . . Garrison . | . . . Intercept . | . . . Searches Triggered . | . . . Construction Impeded . | . . . Haulers Reinforced . | . . . Active Scanning Responses . | . . . Cargo Convoy Interrupts . | . . . Stealth | -11 -10 -10 --------- Run | Yrd Mat Min Distress Signals 2 | . 2 . Communications Jammed . | . . . Distress Signals . | . . . Times Spotted 49 | . 21 28 Peak Tracking Total 19 | . 4 19 Tactical Retreats 2 | . 1 1 Traps | -11 -10 -10 ------- Run | Yrd Mat Min Traps Triggered 2 | . 2 . Indirectly . | . . . Trap Hack Attempts . | . . . Triggered . | . . . Disarmed . | . . . Reprogrammed . | . . . Reused . | . . . Traps Extracted . | . . . Installed . | . . . Triggered . | . . . Machines | -11 -10 -10 ---------- Run | Yrd Mat Min Machines Disabled . | . . . Max in Single Turn . | . . . Machines Repaired . | . . . Machines Dismantled . | . . . Machines Sabotaged . | . . . Overloaded Fab Kills . | . . . Hacking | -11 -10 -10 --------- Run | Yrd Mat Min Machines Accessed . | . . . Terminals . | . . . Fabricators . | . . . Repair Stations . | . . . Recycling Units . | . . . Scanalyzers . | . . . Garrison Access . | . . . Total Hacks . | . . . Successful . | . . . Failed . | . . . Catastrophic . | . . . Database Lockouts . | . . . Manual . | . . . Terminals . | . . . Fabricators . | . . . Repair Stations . | . . . Recycling Units . | . . . Scanalyzers . | . . . Garrison Access . | . . . Terminal Hacks . | . . . Fabricator Hacks . | . . . Repair Station Hacks . | . . . Recycling Unit Hacks . | . . . Scanalyzer . | . . . Garrison Access Hacks . | . . . Unauthorized Hacks . | . . . Terminals . | . . . Fabricators . | . . . Repair Stations . | . . . Recycling Units . | . . . Scanalyzers . | . . . Garrison Access . | . . . Data Cores Recovered . | . . . Used . | . . . Hacking Detections . | . . . Full Trace Events . | . . . Feedback Events . | . . . Feedback Blocked . | . . . Robot Schematics Acquired . | . . . Robots Built . | . . . Authchips . | . . . Time . | . . . Total Robot Build Rating . | . . . Part Schematics Acquired . | . . . Parts Built . | . . . Authchips . | . . . Time . | . . . Total Part Build Rating . | . . . Part Studies Acquired . | . . . Parts Repaired . | . . . Time . | . . . Parts Recycled . | . . . Recycled Matter . | . . . Retrieved Matter . | . . . Retrieved Components . | . . . Parts Scanalyzed . | . . . Part Schematics Acquired . | . . . Parts Damaged . | . . . Bothacking | -11 -10 -10 ------------ Run | Yrd Mat Min Used RIF Installer . | . . . Robots Hacked . | . . . Non-combat . | . . . Combat . | . . . Robot Hacks Applied . | . . . Relay Couplers Released . | . . . Fabnet Peak Effective % . | . . . Robots Rewired . | . . . Allies Hacked . | . . . Hacks Repelled . | . . . Allies | -11 -10 -10 -------- Run | Yrd Mat Min Total Allies . | . . . Largest Group . | . . . Highest-Rated Group . | . . . Highest-Rated Ally . | . . . Total Orders . | . . . Ally Attacks . | . . . Total Damage . | . . . Kills . | . . . Allies Corrupted . | . . . Allies Melted . | . . . Intel | -11 -10 -10 ------- Run | Yrd Mat Min Active Infowar (turns) 515 | 43 409 63 Sensors 1 | . 1 . Seismic 514 | 43 408 63 Robot Analysis Total . | . . . Derelict Logs Recovered . | . . . Drone Launches . | . . . Drone Recoveries . | . . . Exploration | -11 -10 -10 ------------- Run | Yrd Mat Min Turns Passed 1151 | 135 893 123 Spaces Moved 641 | 81 486 74 Core 16 | 2 . 14 Treads . | . . . Legs 84 | 79 5 . Wheels 541 | . 481 60 Hover . | . . . Flight . | . . . Fastest Speed 50 | 50 100 50 Average Speed 126 | 118 130 105 Slowest Speed 175 | 120 175 130 Overloaded Moves . | . . . Propulsion Burnouts . | . . . Robots Hopped . | . . . Potential Cave-ins 1 | . . 1 Cave-ins Triggered . | . . . Exploration Rate (%) 28 | 5 63 17 Regions Visited 2 Branch Regions 1 Pre-discovered Areas . | . . . Known Exits Taken . | . . . Unknown Exits Taken 2 | 1 1 . Scrap Searched . | . . . Spaces Dug . | . . . Terrain Destroyed . | . . . Melee . | . . . Projectile . | . . . AOE . | . . . Terrain Rammed . | . . . Walls Destroyed . | . . . Machines Disabled . | . . . Actions | -11 -10 -10 --------- Run | Yrd Mat Min Total 848 | 104 642 102 Wait 38 | . 31 7 Move 639 | 80 485 74 Hop . | . . . Pick Up 35 | 9 26 . Fast Attach 10 | 7 2 1 Attach 8 | . 5 3 Detach 2 | . 2 . Swap 30 | . 25 5 Drop 12 | 1 11 . Fire 69 | 7 55 7 Melee 3 | . . 3 Ram 2 | . . 2 Kick . | . . . Crush . | . . . Escape Stasis . | . . . Rewire . | . . . Trap . | . . . Miscellaneous . | . . . Route ------- -11/Scrapyard -10/Materials (discovered 3 exits: [*Mat] / [*Min x2]) -10/Mines (discovered 1 exit: [*Mat]) History --------- Turn | Location | Event 5 | -11/Scrapyard | Discovered new exit (range 15) 136 | -11/Scrapyard | Entered Materials 192 | -10/Materials | Discovered new exit (range 9) 309 | -10/Materials | Build established: Mutant 768 | -10/Materials | Discovered new exit (range 13) 971 | -10/Materials | Discovered new exit (range 16) 1029 | -10/Materials | Entered Mines 1032 | -10/Mines | Discovered new exit (range 12) 1066 | -10/Mines | Assembled infested the area 1071 | -10/Mines | Assisted by a Guerilla fighting off Assembled 1077 | -10/Mines | Core integrity fell below 50% 1101 | -10/Mines | Released all parts (5) 1110 | -10/Mines | A weapon hastily lodged in a ceiling crevice suddenly fell to the ground 1147 | -10/Mines | Core integrity fell below 20% 1152 | -10/Mines | Destroyed by as-47598 with Assembled Rifle Last Messages --------------- 01101_ The unstable cave ceiling collapses. 01101_ Released Lgt. Assault Rifle. 01101_ Released Com. Wheel. 01101_ Released Huge Storage Unit. 01101_ Released Assault Rifle. 01101_ Released Com. Wheel. 01101_ Extracted 63 matter. 01103_ Slammed into K-01 Serf. 01110_ A Mak. Hammer has been hastily shoved under some rubble with a note attached: "Who needs nails when you have Unaware?" 01111_ Acquired Mak. Hammer. 01130_ The unstable cave ceiling collapses. 01130_ Mni. Grenade Launcher crushed. 01139_ Seismic Survey Station disabled. 01146_ Destroyed Asb. Hover Unit. 01146_ as-53640 system corrupted by crushing effect. 01147_ as-53640 system terminally corrupted. 01148_ as-73956 destroyed. Map ----- +----------------------------------------------------+ | ?????????????????????????????????????? | | ?????????????????????????????????????? | | ?????????????????????????????????????? | | ?????????????????????????????????????? | | ?????????????????????????????????????? | | ?????????????????????????????????????? | | ?????????????????????????????????????? | | ?????????????????????????????????????? | | ?????????????????????????????????????? | | ?????????????????????????????????????? | | ?????????????????????????????????????? | | ?????????????????????????????????????? | | ?????????????????????????????????????? | | ?????????????????????????????????????? | | ?????????????????????????????????????? | | ?????????????????????????????????????? | | ????????????????????????#??##? ?????? | | ???????????????????????? ????? | | ???????????????????????? % %% "????? | | ??????????????????????? ?????? | | ??????????????????????? % ??????? | | ??????????????????????? ???????? | | ??????????????????????# #????????? | | ?????????????????????# #????????? | | ?#################### #????????? | | ?# a%@% ## ###???????? | | ?# aa""" ## #???????? | | ?# ####### """ =###%=!%## #???????? | | ?# ###???#a "" !%=!=[! * #???????? | | ?# ##??# =#=|#= ##%#????? | | ?# ##?##########==*# !#????? | | ?# ############[!!= ####????? | | ?# % % *!!$*!!#%# #??????? | | ?# ############![= ##??????? | | ?## ##??????????## # #???????? | | ??## ###????????????# #???????? | | ???####??????????????## "#??????? | | ?????????????????????## = "#?????? | | ?????????????????????# = #?????? | | ?????????????????????# * ##### | | ?????????????????????## "% | | ??????????????????????###### " | | ???????????????????????????########## | | ?????????????????????????????????????? | | ?????????????????????????????????????? | | ?????????????????????????????????????? | | ?????????????????????????????????????? | | ?????????????????????????????????????? | | | | | +----------------------------------------------------+ Best States ------------- Heat Dissipation 25 Energy Generation 10 Energy Capacity 250 Matter Stores 450 Matter Capacity 450 Sight Range 16 Robot Scan Range 14 Terrain Scan Density 10 Additional Mass Support 6 Evasion (%) 55 Recoil Reduction 2 Item Schematics ----------------- None Robot Schematics ------------------ None Fabricated ------------ Nothing Repaired ---------- Nothing Studied --------- None Alien Tech Used ----------------- None Achievements -------------- None Challenges ------------ None Game ------ Seed RecoilAutogunDoomcannon Manual? 0 Play Time 00:18:28 Cumulative 43.0 hours Start 2026.01.05 @ 17:35:42 End 2026.01.05 @ 17:54:20 Sessions 1 Manual Loads 0 Difficulty Rogue Special Mode None Game No. 22 Rogue 22 Adventurer 0 Explorer 0 Win Type - Total 0 Types 0/0/0/0/0/0/0/0/0/0 Lore% 10 Gallery% 20 Achievement% 17 Wizard Run 0 Options --------- Layout 1 ASCII 0 Keyboard 0 Movement Arrows Keybinds 0 Fullscreen 1 Font 24/Smallcaps Map View 50x35 Zoom Use 0% Tactical HUD 1 Map Filters NONE Filters NONE Steam 1 RUN: eb8fe456-bb6e-489e-af59-4249f8659cb5